bitfinex-derivatives/quotes_BTCF0:USTF0_20210703
["timestamp","ask_amount","ask_price","bid_price","bid_amount"]
[1625282031584,1.199548,33398.0,33392.0,0.00662525]
[1625282031684,1.199548,33398.0,33392.0,0.12462525]
[1625282032034,1.1996519,33399.0,33392.0,0.12462525]
[1625282032135,1.1996519,33399.0,33393.0,0.00662507]
[1625282032235,1.1996519,33399.0,33393.0,0.12462507]
[1625282032587,1.1996519,33399.0,33398.0,0.72172632]
[1625282032687,1.1996519,33399.0,33398.0,1.05711632]
[1625282032938,1.1996519,33399.0,33398.0,1.06374128]
[1625282034693,1.20029891,33400.0,33398.0,1.06374128]
[1625282034893,0.057,33399.0,33398.0,1.06374128]
[1625282034996,0.057,33399.0,33398.0,0.83972632]
[1625282035093,1.25720317,33399.0,33398.0,0.78072632]
[1625282035193,1.25720317,33399.0,33398.0,0.72172632]
[1625282035293,1.25720317,33399.0,33398.0,0.72835175]
[1625282035396,1.25720317,33399.0,33398.0,0.78735175]
[1625282035496,2.62773428,33399.0,33398.0,0.78735175]
[1625282036447,2.62773428,33399.0,33398.0,0.84635175]
[1625282036550,2.62773428,33399.0,33398.0,0.78735175]
[1625282036650,2.62773428,33399.0,33398.0,0.87835175]
[1625282036801,2.62773428,33399.0,33398.0,0.78735175]
[1625282036902,2.62773428,33399.0,33398.0,0.84635175]
[1625282038152,2.62773428,33399.0,33398.0,0.78735175]
[1625282039855,2.62773428,33399.0,33398.0,0.84635175]
[1625282040506,2.62773428,33399.0,33398.0,0.78735175]
[1625282041560,2.62773428,33399.0,33398.0,0.72835175]
[1625282041711,4.16970212,33399.0,33398.0,0.72835175]
[1625282045966,4.22870212,33399.0,33398.0,0.72835175]
[1625282046369,5.94243067,33399.0,33398.0,0.72835175]
[1625282046817,5.94243067,33399.0,33398.0,0.95417175]
[1625282046968,5.94243067,33399.0,33398.0,1.01317175]
[1625282047370,4.22870212,33399.0,33398.0,1.01317175]
[1625282047469,4.16970212,33399.0,33398.0,1.01317175]
[1625282047582,4.16970212,33399.0,33398.0,1.07217175]
[1625282047829,4.11270212,33399.0,33398.0,1.07217175]
[1625282048027,2.57073428,33399.0,33398.0,1.07217175]
[1625282048474,1.16380317,33399.0,33398.0,1.60308941]
[1625282048927,1.37394655,33401.0,33398.0,1.60308941]
[1625282049274,1.37392736,33402.0,33400.0,0.53085409]
[1625282049374,1.37392736,33402.0,33400.0,0.64885409]
[1625282049524,1.37392736,33402.0,33401.0,0.53069893]
[1625282049625,1.37392736,33402.0,33401.0,0.58969893]
[1625282049724,1.37392736,33402.0,33401.0,0.65532038]
[1625282050075,1.37392736,33402.0,33401.0,0.64869893]
[1625282050675,1.37392736,33402.0,33401.0,0.88927437]
[1625282051225,1.54494113,33406.0,33401.0,0.35857544]
[1625282051576,1.54494113,33406.0,33402.0,0.00662146]
[1625282051776,1.37287428,33403.0,33402.0,0.12462146]
[1625282054087,1.37287428,33403.0,33402.0,0.6550728]
[1625282054485,1.37223559,33404.0,33402.0,0.6550728]
[1625282054684,1.37223559,33404.0,33403.0,0.24057544]
[1625282054785,1.37223559,33404.0,33403.0,0.36519681]
[1625282061199,2.40059123,33404.0,33403.0,0.36519681]
[1625282061857,1.02835564,33404.0,33403.0,0.36519681]
[1625282066568,1.02835564,33404.0,33403.0,0.89499454]
[1625282068473,1.02835564,33404.0,33403.0,0.36519681]
[1625282069573,5.564e-05,33404.0,33403.0,0.36519681]
[1625282069675,1.02901464,33405.0,33403.0,0.89477967]
[1625282069924,1.02901464,33405.0,33404.0,0.00662387]
[1625282070023,1.02901464,33405.0,33404.0,0.12462387]
[1625282070225,1.20080389,33408.0,33404.0,0.65419554]
[1625282070678,1.20080389,33408.0,33405.0,0.52952602]
[1625282070828,1.20080389,33408.0,33407.0,0.48115088]
[1625282070927,1.20080389,33408.0,33407.0,0.54015088]
[1625282071077,1.20080389,33408.0,33407.0,0.59915088]
[1625282071279,1.20080389,33408.0,33407.0,0.6057741]
[1625282071432,1.20092037,33409.0,33407.0,0.6057741]
[1625282071782,1.20092037,33409.0,33408.0,0.00662347]
[1625282071884,1.42885188,33410.0,33408.0,0.06562347]
[1625282071987,1.42885188,33410.0,33408.0,0.12462347]
[1625282072233,2.57177493,33409.0,33408.0,0.12462347]
[1625282072334,2.57177493,33409.0,33408.0,0.118]
[1625282072633,2.57177493,33409.0,33408.0,0.12462378]
[1625282072736,2.57177493,33409.0,33408.0,0.36519922]
[1625282073888,1.20017306,33409.0,33408.0,0.36519922]
[1625282074285,2.57309736,33409.0,33408.0,0.36519922]
[1625282074886,2.63009736,33409.0,33408.0,0.36519922]
[1625282076692,2.63009736,33409.0,33408.0,0.30619922]
[1625282076788,2.63009736,33409.0,33408.0,0.24719922]
[1625282077092,6.71799736,33409.0,33408.0,0.24719922]
[1625282077591,8.26012702,33409.0,33408.0,0.24719922]
[1625282079192,4.17222702,33409.0,33408.0,0.24719922]
[1625282079441,4.17222702,33409.0,33408.0,0.30619922]
[1625282083250,4.17222702,33409.0,33408.0,0.36519922]
[1625282083702,4.17222702,33409.0,33408.0,0.30619922]
[1625282084552,4.17222702,33409.0,33408.0,0.36519922]
[1625282086358,4.17222702,33409.0,33408.0,0.30619922]
[1625282086458,4.36863702,33409.0,33408.0,0.24719922]
[1625282086811,3.16846396,33409.0,33408.0,0.24719922]
[1625282086909,4.36786773,33409.0,33408.0,0.24719922]
[1625282087312,4.36786773,33409.0,33408.0,0.24720332]
[1625282088112,4.37885974,33409.0,33408.0,0.24720332]
[1625282088564,4.37885974,33409.0,33403.0,0.24057544]
[1625282088665,6.09120019,33409.0,33397.0,0.35344783]
[1625282088765,6.09120019,33409.0,33397.0,0.41244783]
[1625282088864,0.24057544,33400.0,33399.0,0.24057544]
[1625282088963,0.59843544,33400.0,33399.0,0.29957544]
[1625282089164,0.59843544,33400.0,33399.0,0.30619293]
[1625282089263,0.59843544,33400.0,33399.0,0.06561749]
[1625282089662,3.16674636,33400.0,33399.0,0.06561749]
[1625282090870,3.4073218,33400.0,33399.0,0.06561749]
[1625282091572,3.4073218,33400.0,33399.0,0.12461749]
[1625282091876,3.3503218,33400.0,33399.0,0.12461749]
[1625282092022,3.0494618,33400.0,33399.0,0.12461749]
[1625282092275,1.67970739,33400.0,33399.0,0.12461749]
[1625282092373,1.67970739,33400.0,33399.0,0.47813144]
[1625282092824,1.67970739,33400.0,33399.0,0.6548687]
[1625282092924,1.67970739,33400.0,33399.0,0.89544414]
[1625282093227,1.67970739,33400.0,33399.0,1.60243127]
[1625282094229,1.67970739,33400.0,33399.0,0.89544414]
[1625282094327,1.67970739,33400.0,33399.0,1.18848414]
[1625282097785,1.67970739,33400.0,33399.0,1.89561872]
[1625282099837,2.70803783,33400.0,33399.0,1.89561872]
[1625282100993,2.99832783,33400.0,33399.0,1.60257872]
[1625282101443,2.99832783,33400.0,33399.0,0.89544414]
[1625282101744,2.99832783,33400.0,33399.0,0.83644414]
[1625282101843,3.05532783,33400.0,33399.0,0.83644414]
[1625282101944,3.05532783,33400.0,33399.0,0.5958687]
[1625282102345,4.42523896,33400.0,33399.0,0.06561749]
[1625282103148,4.42523896,33400.0,33399.0,0.12461749]
[1625282104097,1.85677132,33400.0,33399.0,0.12461749]
[1625282104397,3.05625326,33400.0,33399.0,0.12461749]
[1625282106700,4.59971873,33400.0,33399.0,0.12461749]
[1625282111156,3.05625326,33400.0,33399.0,0.30158625]
[1625282111609,3.05625326,33400.0,33399.0,1.00939136]
[1625282112010,3.05625326,33400.0,33399.0,1.36330096]
[1625282113668,3.05625326,33400.0,33399.0,1.00937566]
[1625282114068,3.05625326,33400.0,33399.0,0.65546389]
[1625282121089,3.05625326,33400.0,33399.0,0.89603933]
[1625282123998,3.05625326,33400.0,33399.0,0.54214548]
[1625282126100,3.05625326,33400.0,33399.0,0.36519293]
[1625282127903,3.05625326,33400.0,33399.0,0.54215018]
[1625282128153,3.05625326,33400.0,33399.0,0.80928018]
[1625282128504,2.99925326,33400.0,33399.0,0.80928018]
[1625282128806,2.99925326,33400.0,33399.0,1.1631957]
[1625282129110,3.05625326,33400.0,33399.0,1.1631957]
[1625282129458,2.99925326,33400.0,33399.0,1.1631957]
[1625282129758,3.05625326,33400.0,33399.0,1.1631957]
[1625282130160,3.05625326,33400.0,33399.0,1.8711004]
[1625282131014,2.70896326,33400.0,33399.0,1.8711004]
[1625282131518,2.70896326,33400.0,33399.0,6.4291004]
[1625282131822,2.70896326,33400.0,33399.0,8.7303635]
[1625282134221,2.70896326,33400.0,33399.0,4.1723635]
[1625282136025,2.70896326,33400.0,33399.0,5.58912177]
[1625282137530,1.02833044,33400.0,33399.0,5.58912177]
[1625282137731,1.02833044,33400.0,33399.0,5.59998082]
[1625282137981,1.03696691,33403.0,33399.0,7.19365552]
[1625282138280,1.03696691,33403.0,33400.0,0.01747094]
[1625282138380,1.03696691,33403.0,33400.0,0.13547094]
[1625282138531,1.20976593,33404.0,33400.0,0.13547094]
[1625282138532,1.03674483,33404.0,33402.0,4.95577202]
[1625282138680,1.03674483,33404.0,33402.0,5.07377202]
[1625282138780,1.03674483,33404.0,33403.0,0.00661285]
[1625282138981,1.03674483,33404.0,33403.0,5.02136708]
[1625282139082,1.03674483,33404.0,33403.0,5.08036708]
[1625282139182,1.03674483,33404.0,33403.0,5.32094252]
[1625282140085,1.03725403,33405.0,33403.0,5.32094252]
[1625282140335,1.03725403,33405.0,33404.0,0.00661269]
[1625282140436,1.03725403,33405.0,33404.0,0.06561269]
[1625282140538,1.03725403,33405.0,33404.0,5.07832748]
[1625282142543,1.03725403,33405.0,33404.0,3.6629804]
[1625282142993,1.03725403,33405.0,33404.0,5.0777683]
[1625282143094,1.03707849,33406.0,33404.0,5.0777683]
[1625282143195,1.03707849,33406.0,33404.0,5.31834374]
[1625282143596,1.03707849,33406.0,33405.0,3.54340638]
[1625282143696,1.03707849,33406.0,33405.0,3.66140638]
[1625282144396,0.24057544,33408.0,33405.0,0.12461219]
[1625282144898,0.24057544,33408.0,33406.0,0.00661203]
[1625282144999,1.44989784,33408.0,33407.0,2.29813512]
[1625282145099,1.44989784,33408.0,33407.0,2.35713512]
[1625282145199,1.44989784,33408.0,33407.0,2.41613512]
[1625282145402,1.44989784,33408.0,33407.0,2.42274711]
[1625282145502,2.48653886,33408.0,33407.0,2.42274711]
[1625282145853,1.27721646,33408.0,33407.0,2.42274711]
[1625282149767,1.27721646,33408.0,33407.0,1.36206936]
[1625282150065,1.27721646,33408.0,33407.0,2.42181366]
[1625282150666,1.27721646,33408.0,33407.0,1.36206936]
[1625282151620,1.27721646,33408.0,33407.0,2.42179633]
[1625282152224,1.27721646,33408.0,33407.0,1.36206936]
[1625282152776,1.33421646,33408.0,33407.0,1.36206936]
[1625282153228,2.54200689,33408.0,33407.0,1.00815118]
[1625282153627,2.54200689,33408.0,33407.0,0.74269621]
[1625282153726,2.54200689,33408.0,33407.0,0.68369621]
[1625282153926,2.54200689,33408.0,33407.0,0.62469621]
[1625282154179,2.54200689,33408.0,33407.0,0.68369621]
[1625282154278,3.9215072,33408.0,33407.0,0.00661199]
[1625282154526,3.9215072,33408.0,33407.0,0.06561199]
[1625282155828,3.8645072,33408.0,33407.0,0.38987199]
[1625282156282,1.27721646,33408.0,33407.0,1.62573018]
[1625282157535,0.24057544,33408.0,33407.0,1.62573018]
[1625282157884,0.24057544,33408.0,33407.0,2.68474996]
[1625282159737,0.24057544,33408.0,33407.0,1.62573018]
[1625282160740,0.24057544,33408.0,33407.0,2.68458429]
[1625282162343,0.24057544,33408.0,33407.0,1.62573018]
[1625282166500,0.24057544,33408.0,33407.0,2.68452442]
[1625282166600,1.03675015,33410.0,33407.0,2.69538043]
[1625282166851,1.27807423,33411.0,33409.0,2.29396851]
[1625282167049,1.27807423,33411.0,33409.0,2.41196851]
[1625282167151,0.24057544,33411.0,33410.0,1.23505148]
[1625282167302,0.24057544,33411.0,33410.0,1.53462692]
[1625282167403,0.24057544,33411.0,33410.0,1.60023783]
[1625282168458,1.27824653,33411.0,33410.0,1.24739375]
[1625282168808,1.27824653,33411.0,33410.0,0.89453683]
[1625282171413,1.27824653,33411.0,33410.0,0.98276263]
[1625282171967,1.27824653,33411.0,33410.0,0.89453683]
[1625282172567,1.27824653,33411.0,33410.0,0.98276394]
[1625282172971,1.27824653,33411.0,33410.0,0.89453683]
[1625282174275,1.27824653,33411.0,33410.0,1.24746594]
[1625282175032,1.33524653,33411.0,33410.0,0.89454557]
[1625282175835,1.33524653,33411.0,33410.0,0.98277522]
[1625282175981,1.33524653,33411.0,33410.0,1.25671522]
[1625282177537,1.33524653,33411.0,33410.0,1.16848557]
[1625282177638,1.27824653,33411.0,33410.0,1.16848557]
[1625282178591,1.27824653,33411.0,33410.0,0.99202597]
[1625282178891,1.27824653,33411.0,33410.0,1.52152868]
[1625282180194,1.27824653,33411.0,33410.0,1.16862906]
[1625282181345,1.27824653,33411.0,33410.0,1.8747613]
[1625282183651,1.27824653,33411.0,33410.0,2.93416143]
[1625282186057,1.27824653,33411.0,33410.0,2.945028]
[1625282187711,1.27824653,33411.0,33410.0,2.93416143]
[1625282187914,2.49730753,33411.0,33410.0,2.93416143]
[1625282190319,2.49730753,33411.0,33410.0,4.17209244]
[1625282196031,3.89439154,33411.0,33410.0,4.17209244]
[1625282197133,3.89439154,33411.0,33410.0,5.59929869]
[1625282197635,2.49730753,33411.0,33410.0,5.59929869]
[1625282199941,2.49730753,33411.0,33410.0,9.78479869]
[1625282201343,2.49730753,33411.0,33410.0,5.59929869]
[1625282201844,2.49730753,33411.0,33410.0,10.95709869]
[1625282202195,2.25673209,33411.0,33410.0,10.95709869]
[1625282202848,1.04992833,33412.0,33410.0,12.55033905]
[1625282203298,1.04992833,33412.0,33411.0,0.01749133]
[1625282203398,1.04992833,33412.0,33411.0,0.13549133]
[1625282203547,1.04992833,33412.0,33411.0,5.0922461]
[1625282203999,0.99082833,33412.0,33411.0,5.1829461]
[1625282204449,2.833e-05,33412.0,33411.0,5.1829461]
[1625282204650,0.52694829,33415.0,33411.0,5.1829461]
[1625282204751,0.12494829,33415.0,33411.0,5.1829461]
[1625282204852,1.57483354,33419.0,33411.0,6.77587581]
[1625282204952,1.57483354,33419.0,33412.0,0.01749006]
[1625282205055,1.57483354,33419.0,33412.0,0.13549006]
[1625282205254,1.57674979,33423.0,33418.0,1.2388876]
[1625282205354,1.63374979,33423.0,33418.0,1.5324176]
[1625282205605,1.63374979,33423.0,33420.0,1.71946265]
[1625282205704,1.63374979,33423.0,33420.0,1.77846265]
[1625282206003,1.63374979,33423.0,33420.0,1.78507682]
[1625282206204,0.057,33423.0,33420.0,1.78507682]
[1625282206304,0.057,33423.0,33420.0,1.84407682]
[1625282206706,0.24057544,33424.0,33420.0,1.84407682]
[1625282207554,0.24057544,33424.0,33421.0,0.24057544]
[1625282207654,0.24057544,33424.0,33421.0,0.35857544]
[1625282207754,0.24057544,33424.0,33421.0,0.36518917]
[1625282207904,0.24057544,33424.0,33423.0,1.23761431]
[1625282208005,0.24057544,33424.0,33423.0,1.29661431]
[1625282208355,0.24057544,33424.0,33423.0,1.30322807]
[1625282209656,0.24057544,33424.0,33423.0,0.94950156]
[1625282210055,0.24057544,33424.0,33423.0,0.3307244]
[1625282211359,0.29757544,33424.0,33423.0,0.3307244]
[1625282211459,0.29757544,33424.0,33423.0,0.15398397]
[1625282211911,0.29757544,33424.0,33423.0,0.06561376]
[1625282212463,0.29757544,33424.0,33423.0,0.15396218]
[1625282212964,0.29757544,33424.0,33423.0,0.06561376]
[1625282213565,0.29757544,33424.0,33423.0,0.12461376]
[1625282213666,0.29757544,33424.0,33423.0,0.65457906]
[1625282213815,0.057,33424.0,33423.0,0.65457906]
[1625282214067,0.057,33424.0,33423.0,1.3613084]
[1625282215018,1.57593715,33427.0,33423.0,1.3613084]
[1625282215120,1.81567456,33428.0,33423.0,1.3613084]
[1625282215219,0.057,33427.0,33423.0,1.3613084]
[1625282215418,0.057,33427.0,33424.0,0.00661328]
[1625282215518,0.057,33427.0,33426.0,0.08830525]
[1625282215620,0.057,33427.0,33426.0,0.56389069]
[1625282215718,0.057,33427.0,33426.0,0.68189069]
[1625282215819,0.057,33427.0,33426.0,0.59358544]
[1625282215969,0.057,33427.0,33426.0,0.60019874]
[1625282220177,1.45661435,33427.0,33426.0,0.60019874]
[1625282225040,2.68107691,33427.0,33426.0,0.60019874]
[1625282230150,1.45661435,33427.0,33426.0,0.60019874]
[1625282236809,1.45661435,33427.0,33426.0,0.54119874]
[1625282236909,1.64628435,33427.0,33426.0,0.30618874]
[1625282237161,1.64628435,33427.0,33426.0,0.24718874]
[1625282237260,1.70528435,33427.0,33426.0,0.24718874]
[1625282237361,3.2837143,33427.0,33426.0,0.24718874]
[1625282237761,3.29469619,33427.0,33426.0,0.24718874]
[1625282238911,3.23569619,33427.0,33426.0,0.24718874]
[1625282240315,3.2247143,33427.0,33426.0,0.24718874]
[1625282255003,3.2247143,33427.0,33426.0,0.45778874]
[1625282255352,3.2247143,33427.0,33426.0,0.51678874]
[1625282255554,3.2247143,33427.0,33426.0,0.45778874]
[1625282255654,3.2247143,33427.0,33426.0,0.51678874]
[1625282258461,3.2247143,33427.0,33426.0,0.45778874]
[1625282258561,3.2247143,33427.0,33426.0,0.51678874]
[1625282259615,3.0350443,33427.0,33426.0,0.51678874]
[1625282260218,3.0350443,33427.0,33426.0,1.13600726]
[1625282261221,3.0350443,33427.0,33426.0,1.04754747]
[1625282261520,3.0350443,33427.0,33426.0,1.40154803]
[1625282263076,2.9780443,33427.0,33426.0,1.40154803]
[1625282263427,2.9780443,33427.0,33426.0,1.7556922]
[1625282264477,2.9780443,33427.0,33426.0,1.8146922]
[1625282264729,2.9780443,33427.0,33426.0,2.87661057]
[1625282265130,1.39961435,33427.0,33426.0,2.87661057]
[1625282265779,1.39961435,33427.0,33426.0,3.11718601]
[1625282269084,1.39961435,33427.0,33426.0,7.22818601]
[1625282271490,1.39961435,33427.0,33426.0,4.35554159]
[1625282272138,1.39961435,33427.0,33426.0,9.01464159]
[1625282275998,1.39961435,33427.0,33426.0,4.35554159]
[1625282276554,1.39961435,33427.0,33426.0,8.67884159]
[1625282277403,1.39961435,33427.0,33426.0,4.35554159]
[1625282278054,1.40718644,33428.0,33426.0,4.35554159]
[1625282278154,1.40718644,33428.0,33426.0,9.21004159]
[1625282278354,1.40718644,33428.0,33427.0,2.29823108]
[1625282278455,1.40718644,33428.0,33427.0,2.36385317]
[1625282278554,1.40718644,33428.0,33427.0,2.42285317]
[1625282278957,1.40718644,33428.0,33427.0,2.41623108]
[1625282279159,1.40870614,33430.0,33427.0,5.07449762]
[1625282279457,1.40870614,33430.0,33429.0,2.29758869]
[1625282279655,1.40870614,33430.0,33429.0,2.41558869]
[1625282279856,1.40870614,33430.0,33429.0,2.65616413]
[1625282279957,1.40870614,33430.0,33429.0,2.66278595]
[1625282283968,1.40870614,33430.0,33429.0,2.90336139]
[1625282284068,1.40870614,33430.0,33429.0,7.02526139]
[1625282284619,1.40870614,33430.0,33429.0,2.90336139]
[1625282285271,1.40870614,33430.0,33429.0,3.17410139]
[1625282285823,1.46570614,33430.0,33429.0,2.84436139]
[1625282285930,1.46570614,33430.0,33429.0,1.78393584]
[1625282286631,1.46570614,33430.0,33429.0,1.07675871]
[1625282286777,5.91330614,33430.0,33429.0,1.07675871]
[1625282287128,1.46570614,33430.0,33429.0,0.81176899]
[1625282287228,1.46570614,33430.0,33429.0,0.87076899]
[1625282287332,1.40870614,33430.0,33429.0,0.87076899]
[1625282287478,1.46570614,33430.0,33429.0,0.87076899]
[1625282287578,1.40870614,33430.0,33429.0,0.87076899]
[1625282288478,1.46570614,33430.0,33429.0,0.87076899]
[1625282288735,1.73431614,33430.0,33429.0,0.81176899]
[1625282289229,1.73431614,33430.0,33429.0,0.5467727]
[1625282289230,3.31634482,33430.0,33429.0,0.5467727]
[1625282289981,3.55692026,33430.0,33429.0,0.5467727]
[1625282292437,3.49992026,33430.0,33429.0,0.7971527]
[1625282292537,3.55692026,33430.0,33429.0,0.7971527]
[1625282294242,3.49992026,33430.0,33429.0,0.7971527]
[1625282294640,1.91789158,33430.0,33429.0,0.88547385]
[1625282294742,1.70628158,33430.0,33429.0,0.88547385]
[1625282295040,1.64928158,33430.0,33429.0,0.88547385]
[1625282295344,1.40870614,33430.0,33429.0,0.88547385]
[1625282295847,1.40870614,33430.0,33429.0,1.41534918]
[1625282296149,1.40870614,33430.0,33429.0,1.32702803]
[1625282296499,1.46570614,33430.0,33429.0,1.06209207]
[1625282298503,1.40870614,33430.0,33429.0,1.06209207]
[1625282298755,1.40870614,33430.0,33429.0,1.41535244]
[1625282299206,1.40870614,33430.0,33429.0,2.033542]
[1625282306120,1.40870614,33430.0,33429.0,3.09365426]
[1625282312837,1.41417137,33431.0,33429.0,4.32593463]
[1625282313291,1.41417137,33431.0,33430.0,2.29533182]
[1625282313388,1.41417137,33431.0,33430.0,2.35433182]
[1625282314791,1.41417137,33431.0,33430.0,2.41333182]
[1625282315393,1.41417137,33431.0,33430.0,3.64580499]
[1625282317951,1.41500856,33432.0,33430.0,5.05029257]
[1625282318051,1.41500856,33432.0,33431.0,0.24057544]
[1625282318301,1.41500856,33432.0,33431.0,0.36519205]
[1625282318501,1.41500856,33432.0,33431.0,3.87591107]
[1625282326973,1.41494506,33434.0,33431.0,5.28176689]
[1625282327323,1.41494506,33434.0,33432.0,0.00661616]
[1625282327472,1.41494506,33434.0,33433.0,3.51510422]
[1625282327572,1.41494506,33434.0,33433.0,3.57410422]
[1625282327922,1.41494506,33434.0,33433.0,3.58072038]
[1625282328072,1.41494506,33434.0,33433.0,3.82129582]
[1625282333083,1.41456892,33435.0,33433.0,3.82129582]
[1625282333183,1.47156892,33435.0,33433.0,3.82129582]
[1625282333386,1.47156892,33435.0,33434.0,0.00661623]
[1625282333485,0.057,33435.0,33434.0,2.34608715]
[1625282333886,1.47158179,33435.0,33434.0,1.29356211]
[1625282335591,3.06296261,33435.0,33434.0,0.59187875]
[1625282336444,3.06296261,33435.0,33434.0,0.59168283]
[1625282336998,3.06296261,33435.0,33434.0,0.67933314]
[1625282337801,3.06296261,33435.0,33434.0,0.32862207]
[1625282338353,3.06296261,33435.0,33434.0,0.67929149]
[1625282338753,3.06296261,33435.0,33434.0,0.32862207]
[1625282341810,3.06296261,33435.0,33434.0,0.94296523]
[1625282342265,3.06296261,33435.0,33434.0,0.59202563]
[1625282342712,3.06296261,33435.0,33434.0,1.294022]
[1625282343113,3.06296261,33435.0,33434.0,0.94302671]
[1625282343565,3.06296261,33435.0,33434.0,0.59213943]
[1625282343664,3.33514261,33435.0,33434.0,0.59213943]
[1625282345518,3.06296261,33435.0,33434.0,0.59213943]
[1625282345770,3.06296261,33435.0,33434.0,0.68043943]
[1625282346171,3.06296261,33435.0,33434.0,0.59213943]
[1625282348325,3.06296261,33435.0,33434.0,0.94270615]
[1625282348428,1.64838082,33435.0,33434.0,0.94270615]
[1625282348674,3.06316871,33435.0,33434.0,0.94270615]
[1625282350979,3.06316871,33435.0,33434.0,0.59170507]
[1625282352233,3.06316871,33435.0,33434.0,0.94234348]
[1625282352736,3.06316871,33435.0,33434.0,0.59170507]
[1625282354738,3.06316871,33435.0,33434.0,1.29335564]
[1625282355191,3.34306871,33435.0,33434.0,0.94255107]
[1625282356241,3.58364415,33435.0,33434.0,0.94255107]
[1625282360259,3.58364415,33435.0,33434.0,0.41646223]
[1625282360360,3.58364415,33435.0,33434.0,0.59207606]
[1625282360759,3.58364415,33435.0,33434.0,0.67989476]
[1625282361309,3.58364415,33435.0,33434.0,0.59207606]
[1625282362063,3.58364415,33435.0,33434.0,0.67990012]
[1625282362463,3.64264415,33435.0,33434.0,0.67990012]
[1625282362563,3.64264415,33435.0,33434.0,0.62090012]
[1625282362915,3.65362728,33435.0,33434.0,0.62090012]
[1625282363016,5.42418191,33435.0,33434.0,0.00661623]
[1625282364368,5.66475735,33435.0,33434.0,0.00661623]
[1625282364470,5.66475735,33435.0,33430.0,0.00661901]
[1625282364718,5.66475735,33435.0,33434.0,0.00661904]
[1625282364918,0.88803401,33435.0,33434.0,0.00661904]
[1625282365019,0.88803401,33435.0,33431.0,0.00661904]
[1625282365117,0.88803401,33435.0,33431.0,0.06561904]
[1625282365269,0.88803401,33435.0,33434.0,0.00661907]
[1625282365569,0.88803401,33435.0,33432.0,0.00661913]
[1625282365669,0.88803401,33435.0,33432.0,0.06561913]
[1625282365770,0.0109839,33434.0,33429.0,0.24057544]
[1625282365924,4.7793747,33433.0,33429.0,0.24057544]
[1625282366072,0.116,33432.0,33429.0,0.24057544]
[1625282366323,0.116,33432.0,33430.0,0.00660783]
[1625282366426,6.38506598,33431.0,33430.0,0.00660783]
[1625282366524,6.50106598,33431.0,33430.0,0.00660783]
[1625282366875,1.88616598,33431.0,33430.0,0.00660783]
[1625282366975,4.89416881,33431.0,33430.0,0.00660783]
[1625282368179,9.53886881,33431.0,33430.0,0.00660783]
[1625282368378,9.77944425,33431.0,33427.0,0.61523616]
[1625282368677,9.77944425,33431.0,33428.0,0.0065966]
[1625282369130,3.00699509,33429.0,33428.0,0.0065966]
[1625282369229,3.06399509,33429.0,33428.0,0.0065966]
[1625282369883,3.06399509,33429.0,33426.0,0.00659696]
[1625282369982,3.06399509,33429.0,33426.0,0.06559696]
[1625282370134,0.057,33429.0,33428.0,0.00659696]
[1625282370384,0.53815088,33429.0,33427.0,0.00659698]
[1625282370534,3.54407258,33429.0,33427.0,0.00659698]
[1625282370632,3.54407258,33429.0,33426.0,0.00659684]
[1625282370783,3.54407258,33429.0,33426.0,0.06559684]
[1625282370883,3.0057429,33428.0,33426.0,0.06559684]
[1625282370985,0.057,33427.0,33426.0,0.06559684]
[1625282371236,0.057,33427.0,33426.0,0.059]
[1625282371336,3.06274048,33427.0,33426.0,0.059]
[1625282371436,3.12174048,33427.0,33426.0,0.06559689]
[1625282372287,3.18074048,33427.0,33424.0,0.5273892]
[1625282372387,0.24057544,33425.0,33424.0,0.5273892]
[1625282372487,0.35657544,33425.0,33424.0,0.5273892]
[1625282372687,0.35657544,33425.0,33423.0,1.23096574]
[1625282372688,0.35657544,33425.0,33423.0,0.17583331]
[1625282372788,0.35657544,33425.0,33424.0,0.00658612]
[1625282373189,3.36148136,33425.0,33424.0,0.00658612]
[1625282373544,3.36148136,33425.0,33423.0,0.00658635]
[1625282374392,3.24532615,33424.0,33423.0,0.00658635]
[1625282374491,3.30232615,33424.0,33423.0,0.00658635]
[1625282375143,3.30232615,33424.0,33422.0,0.00658639]
[1625282375795,1.41339563,33423.0,33422.0,0.00658639]
[1625282375895,1.47039563,33423.0,33422.0,0.00658639]
[1625282376446,5.29939563,33423.0,33422.0,0.00658639]
[1625282377497,1.47039563,33423.0,33422.0,0.00658639]
[1625282378397,1.41339563,33423.0,33422.0,0.00658639]
[1625282378800,1.47039563,33423.0,33422.0,0.00658639]
[1625282379199,0.057,33423.0,33422.0,0.53346664]
[1625282379651,1.46931314,33423.0,33422.0,0.88485851]
[1625282379899,0.057,33423.0,33422.0,0.88485851]
[1625282380149,1.4693227,33423.0,33422.0,0.88485851]
[1625282380448,1.4693227,33423.0,33422.0,0.53364762]
[1625282380549,0.057,33423.0,33422.0,0.53364762]
[1625282381052,0.057,33423.0,33422.0,0.52706123]
[1625282381254,0.057,33423.0,33422.0,0.53366243]
[1625282381705,1.46914997,33423.0,33422.0,0.53366243]
[1625282382054,1.46914997,33423.0,33422.0,0.0066012]
[1625282384360,1.41214997,33423.0,33422.0,0.0066012]
[1625282384510,1.41214997,33423.0,33422.0,0.53393527]
[1625282385111,1.8929269,33424.0,33422.0,0.88533362]
[1625282385210,0.48115088,33424.0,33422.0,0.88533362]
[1625282385312,0.53815088,33424.0,33422.0,0.88533362]
[1625282385511,0.53815088,33424.0,33423.0,0.00659741]
[1625282385661,1.94994194,33424.0,33423.0,0.00659741]
[1625282386162,1.94994194,33424.0,33422.0,0.52732574]
[1625282386263,1.94994194,33424.0,33423.0,0.00659759]
[1625282386514,1.94994194,33424.0,33422.0,0.00659755]
[1625282387314,1.41171086,33423.0,33422.0,0.00659755]
[1625282387516,1.41171086,33423.0,33421.0,0.52749963]
[1625282387615,1.41171086,33423.0,33422.0,0.00659763]
[1625282388466,1.46871086,33423.0,33422.0,0.00659763]
[1625282389217,5.37591086,33423.0,33422.0,0.00659763]
[1625282389469,5.37591086,33423.0,33421.0,0.00659777]
[1625282389917,1.41172317,33422.0,33421.0,0.00659777]
[1625282390018,1.46872317,33422.0,33421.0,0.00659777]
[1625282390369,1.52772317,33422.0,33421.0,0.00659777]
[1625282391070,1.52772317,33422.0,33420.0,0.00659825]
[1625282391674,1.41174627,33421.0,33420.0,0.00659825]
[1625282391821,1.46874627,33421.0,33420.0,0.00659825]
[1625282395375,1.41174627,33421.0,33420.0,0.00659825]
[1625282398433,1.4115063,33422.0,33420.0,0.29976825]
[1625282398732,1.4115063,33422.0,33421.0,0.00658442]
[1625282399335,1.4684361,33423.0,33421.0,0.18216165]
[1625282399686,1.41146818,33422.0,33421.0,0.00658442]
[1625282399786,1.77324818,33422.0,33420.0,0.17561618]
[1625282400036,1.41152208,33421.0,33419.0,1.52580517]
[1625282400135,0.057,33420.0,33419.0,1.52580517]
[1625282400488,5.53997544,33420.0,33419.0,1.52580517]
[1625282400638,1.70910944,33420.0,33419.0,1.00548463]
[1625282402187,1.76810944,33420.0,33419.0,1.00548463]
[1625282402287,1.70910944,33420.0,33419.0,1.00548463]
[1625282403840,1.76810944,33420.0,33419.0,1.00548463]
[1625282404640,1.71110944,33420.0,33419.0,1.00548463]
[1625282405840,1.76810944,33420.0,33419.0,1.00548463]